bitfinex/quotes_ETHUSD_20240816
["timestamp","ask_amount","ask_price","bid_price","bid_amount"]
[1723768649433,4.54687487,2580.4,2580.3,35.0]
[1723768650001,8.16406917,2580.4,2580.3,35.0]
[1723768650202,8.16406917,2580.4,2579.5,2.461]
[1723768650203,3.87614,2579.9,2579.5,2.461]
[1723768650421,3.87614,2579.9,2579.3,3.87692]
[1723768650621,3.87627,2579.8,2579.4,35.0]
[1723768650822,4.263754,2579.9,2579.4,35.0]
[1723768651438,8.139994,2579.9,2579.4,35.0]
[1723768651633,4.263754,2579.9,2579.4,35.0]
[1723768651835,3.87629,2579.8,2579.4,35.0]
[1723768652035,3.87609,2580.0,2579.4,38.87678]
[1723768652249,3.87591,2580.1,2579.6,3.8765]
[1723768652406,3.87591,2580.1,2579.4,38.87678]
[1723768652407,7.75183,2580.1,2579.4,42.75351]
[1723768652607,3.87566,2580.2,2579.6,3.87646]
[1723768652816,4.10335,2580.3,2579.6,3.87646]
[1723768653014,0.25820339,2580.2,2579.6,3.87646]
[1723768653220,0.25820339,2580.2,2579.7,3.87637]
[1723768653416,3.8753,2580.5,2579.9,3.87602]
[1723768653740,3.8753,2580.5,2579.8,3.87614]
[1723768653941,3.87563,2580.3,2579.7,6.1585]
[1723768654402,0.04878711,2580.2,2579.7,6.1585]
[1723768654611,3.87589,2580.1,2579.7,2.2821]
[1723768654844,0.0487712,2580.0,2579.7,2.2821]
[1723768655047,0.0487712,2580.0,2579.7,6.15851]
[1723768655209,0.04878535,2579.9,2579.7,6.15851]
[1723768655406,3.8756,2580.3,2579.7,6.15851]
[1723768655642,0.04887684,2580.2,2579.7,6.15851]
[1723768656234,0.04887684,2580.2,2579.7,2.2821]
[1723768656433,0.04887684,2580.2,2579.7,6.15849]
[1723768656635,0.04887684,2580.2,2579.9,3.87598]
[1723768656932,7.44,2580.4,2579.9,3.87598]
[1723768657243,11.31538,2580.4,2579.8,7.7523]
[1723768657556,11.31538,2580.4,2579.8,7.75233]
[1723768657557,0.04863839,2580.3,2579.8,7.75233]
[1723768657725,0.04863839,2580.3,2579.9,3.8761]
[1723768659330,0.04863839,2580.3,2579.8,3.87615]
[1723768659513,3.92415839,2580.3,2579.8,3.87615]
[1723768659723,7.79975839,2580.3,2579.8,3.87615]
[1723768659921,3.92415839,2580.3,2579.7,6.15843]
[1723768660346,0.25819388,2580.2,2579.7,6.15843]
[1723768660661,3.92415839,2580.3,2579.7,6.15843]
[1723768660662,0.04860542,2580.1,2579.7,6.15843]
[1723768660821,3.87568,2580.2,2579.7,6.15843]
[1723768661025,0.04864872,2580.1,2579.7,6.15843]
[1723768663283,0.04862559,2580.0,2579.7,6.15843]
[1723768663445,8.88753584,2580.3,2579.7,6.15843]
[1723768663446,5.01193584,2580.3,2579.7,6.15843]
[1723768663625,1.5520971,2580.2,2579.7,6.15843]
[1723768663825,0.25819472,2580.1,2579.7,6.15843]
[1723768664073,0.04859462,2580.0,2579.7,6.15843]
[1723768664479,1.24519358,2580.2,2579.7,6.15843]
[1723768664681,0.3068347,2580.1,2579.8,35.0]
[1723768664885,0.25820171,2580.0,2579.8,35.0]
[1723768665184,0.04856496,2579.9,2579.8,35.0]
[1723768665726,5.01193584,2580.3,2579.8,35.0]
[1723768666027,0.30687394,2580.2,2579.8,35.0]
[1723768666227,0.25820176,2580.1,2579.8,35.0]
[1723768666530,0.04855908,2580.0,2579.9,3.87598]
[1723768667261,0.30678785,2580.0,2579.9,38.87598]
[1723768667456,0.30678789,2580.0,2579.9,38.87598]
[1723768667771,0.30678777,2580.0,2579.9,38.87598]
[1723768668134,0.30678075,2580.0,2579.9,38.87598]
[1723768668776,0.30678075,2580.0,2579.9,42.75209]
[1723768668944,0.04860139,2580.0,2579.9,42.75209]
[1723768669461,7.44,2580.4,2580.0,3.87593]
[1723768669655,0.25816122,2580.3,2580.1,3.87573]
[1723768669868,0.25816122,2580.2,2580.1,3.87573]
[1723768670071,0.25816122,2580.3,2580.1,3.87573]
[1723768670255,7.44,2580.4,2580.1,6.23713]
[1723768670453,0.25813048,2580.3,2580.1,2.3614]
[1723768671763,0.25813048,2580.3,2580.1,6.23719]
[1723768672074,7.44,2580.4,2580.3,7.75102]
[1723768672289,19.62,2581.0,2580.5,3.87515]
[1723768672604,2.47091388,2580.9,2580.5,3.87515]
[1723768672804,0.2580923,2580.8,2580.5,3.87515]
[1723768673016,0.2580923,2580.7,2580.6,6.13376]
[1723768673224,3.87451,2581.0,2580.4,3.87528]
[1723768673515,4.1325123,2581.1,2580.7,35.0]
[1723768673516,0.2580923,2580.9,2580.7,35.0]
[1723768673823,0.2580923,2580.8,2580.7,35.0]
[1723768674108,0.2580923,2581.0,2580.7,35.0]
[1723768674317,0.2580923,2580.9,2580.7,38.87491]
[1723768674614,0.2580923,2580.8,2580.7,38.87491]
[1723768675006,0.25804368,2580.8,2580.7,38.87491]
[1723768675212,0.25804368,2580.9,2580.8,3.87476]
[1723768675408,7.5650957,2581.2,2580.8,3.87476]
[1723768675607,1.26602445,2581.1,2580.8,3.87476]
[1723768675796,0.25803247,2581.0,2580.8,3.87476]
[1723768675997,1.00799198,2581.1,2580.7,35.0]
[1723768675998,2.73233247,2580.9,2580.7,35.0]
[1723768676293,4.13279247,2580.8,2580.1,6.20361]
[1723768676493,4.14804325,2580.8,2580.0,3.87586]
[1723768676692,4.13304889,2580.7,2580.1,3.87568]
[1723768676894,0.25810889,2580.6,2580.2,35.0]
[1723768677119,0.25810889,2580.5,2580.2,35.0]
[1723768677324,0.25810889,2580.4,2580.3,3.87551]
[1723768677495,6.34892,2580.9,2580.2,38.87558]
[1723768677496,7.44,2580.9,2580.4,6.20316]
[1723768677693,7.44,2580.9,2580.2,3.87563]
[1723768677694,4.13286332,2580.8,2580.3,3.87549]
[1723768677937,0.25809332,2580.7,2580.5,35.0]
[1723768678225,0.25809332,2580.6,2580.5,35.0]
[1723768678588,0.25785714,2580.6,2580.5,35.0]
[1723768678938,8.93560305,2580.9,2580.5,35.0]
[1723768678939,3.87494,2580.7,2580.5,35.0]
[1723768679248,0.25785714,2580.6,2580.5,35.0]
[1723768679454,0.25785714,2580.6,2579.8,2.3278]
[1723768679455,3.87538,2580.4,2579.8,2.3278]
[1723768679624,2.73218619,2580.6,2579.4,1.32137745]
[1723768679625,3.87575,2580.2,2579.5,6.20451]
[1723768679926,6.60817113,2580.1,2579.6,35.0]
[1723768680086,5.18233324,2580.0,2579.6,35.0]
[1723768680288,8.01045113,2579.9,2579.6,35.0]
[1723768680489,0.25797113,2579.8,2579.6,35.0]
[1723768680698,7.75249,2579.9,2579.6,35.0]
[1723768680699,0.25797113,2579.7,2579.6,35.0]
[1723768681007,3.87624,2579.9,2579.6,35.0]
[1723768681008,0.25797113,2579.8,2579.6,35.0]
[1723768681614,5.00372221,2579.9,2579.6,35.0]
[1723768682027,0.25801362,2579.8,2579.6,35.0]
[1723768682207,11.703098,2580.3,2579.6,37.3351]
[1723768682626,0.25797007,2580.2,2579.7,3.87641]
[1723768682837,0.25797007,2580.1,2579.7,3.87641]
[1723768683028,0.25797007,2580.0,2579.7,3.87641]
[1723768683348,1.1703098,2580.2,2579.4,3.87686]
[1723768683349,0.25797007,2579.9,2579.4,3.87686]
[1723768683497,0.25797007,2579.8,2579.4,7.75363]
[1723768683690,9.42671178,2580.1,2579.4,7.75363]
[1723768683691,9.42671178,2580.1,2579.5,35.0]
[1723768683923,1.20066869,2580.0,2579.5,38.8767]
[1723768684132,0.25799751,2579.9,2579.6,3.87645]
[1723768684317,0.04678318,2579.8,2579.6,3.87645]
[1723768684505,0.04678318,2579.8,2579.6,7.75292]
[1723768684828,1.67490178,2580.1,2579.3,2.4517]
[1723768684829,1.67490178,2580.1,2579.7,35.0]
[1723768685042,0.25798194,2580.0,2579.7,35.0]
[1723768685328,0.25798194,2579.9,2579.7,35.0]
[1723768685487,11.703108,2580.3,2579.7,35.0]
[1723768685488,0.25798194,2579.8,2579.7,35.0]
[1723768685690,3.87591,2580.1,2579.7,35.0]
[1723768685925,0.25798194,2580.0,2579.7,35.0]
[1723768686112,4.13413194,2579.9,2579.7,35.0]
[1723768686325,0.25798194,2579.8,2579.7,35.0]
[1723768687124,0.25800438,2579.8,2579.7,35.0]
[1723768687640,3.87647,2579.7,2579.0,6.70477028]
[1723768687815,0.25800438,2579.6,2579.0,6.70477028]
[1723768688138,0.25800438,2579.6,2579.2,3.87702]
[1723768688342,4.57999615,2579.8,2579.2,7.7541]
[1723768688547,1.84764121,2579.7,2579.2,3.87702]
[1723768688708,0.25802659,2579.6,2579.2,3.87702]
[1723768688914,0.25802659,2579.6,2579.3,35.0]
[1723768689238,3.87672,2579.5,2579.3,35.0]
[1723768689440,4.13489659,2579.4,2579.3,35.0]
[1723768689996,0.25802659,2579.4,2579.3,35.0]
[1723768690345,5.46612462,2579.7,2579.3,35.0]
[1723768690640,0.25805691,2579.6,2579.3,35.0]
[1723768691145,3.8765,2579.7,2579.3,35.0]
[1723768691337,0.25803949,2579.6,2579.3,35.0]
[1723768691541,4.13463673,2579.6,2579.3,35.0]
[1723768691723,0.25804673,2579.5,2579.3,35.0]
[1723768692137,7.44,2579.9,2579.3,35.0]
[1723768692138,9.9007,2579.9,2579.3,35.0]
[1723768692299,3.8768,2579.5,2579.3,35.0]
[1723768692925,0.25807122,2579.4,2579.3,35.0]
[1723768693246,3.8768,2579.5,2579.3,35.0]
[1723768693442,3.87658,2579.6,2579.3,35.0]
[1723768693600,0.25804745,2579.5,2579.3,35.0]
[1723768693800,4.97814115,2579.7,2579.3,35.0]
[1723768694097,0.25805117,2579.6,2579.3,35.0]
[1723768694306,0.25805117,2579.6,2579.3,41.1804]
[1723768694513,11.31621,2579.9,2579.3,41.1804]
[1723768694803,0.2580311,2579.8,2579.3,41.1804]
[1723768695257,0.25802548,2579.7,2579.3,41.1804]
[1723768695562,14.053414,2579.9,2579.3,41.18034]
[1723768695719,0.25803111,2579.8,2579.3,37.3034]
[1723768696066,0.25803111,2579.8,2579.3,35.0]
[1723768696067,3.8767,2579.6,2579.3,35.0]
[1723768696202,0.25803111,2579.5,2579.3,35.0]
[1723768696857,4.13486111,2579.5,2579.3,35.0]
[1723768697058,3.87683,2579.5,2579.3,35.0]
[1723768697391,0.775352,2579.4,2579.3,35.0]
[1723768697696,7.7534,2579.6,2579.3,35.0]
[1723768697902,4.13479853,2579.5,2579.3,35.0]
[1723768698125,3.87672,2579.5,2579.3,35.0]
[1723768698810,3.87665,2579.6,2579.3,35.0]
[1723768699014,0.25806524,2579.5,2579.3,35.0]
[1723768699311,0.04611775,2579.4,2579.3,35.0]
[1723768699500,4.65027945,2579.6,2579.3,35.0]
[1723768699697,8.52697945,2579.6,2579.3,35.0]
[1723768699910,0.04609344,2579.5,2579.3,35.0]
[1723768701848,0.04609344,2579.5,2579.0,3.87736]
[1723768702219,0.04609344,2579.5,2579.1,35.0]
[1723768703005,3.92281344,2579.5,2579.1,35.0]
[1723768703342,0.04609344,2579.5,2579.1,35.0]
[1723768703860,0.04609344,2579.5,2579.1,38.87729]
[1723768704516,3.92282344,2579.5,2579.1,35.0]
[1723768704711,0.04609344,2579.5,2579.1,35.0]
[1723768705012,0.04609344,2579.5,2579.1,38.87729]
[1723768705646,3.87646,2579.7,2579.1,38.87729]
[1723768705844,0.04451336,2579.4,2579.1,42.7545]
[1723768706051,3.87635,2579.8,2579.1,38.87721]
[1723768706337,0.25803082,2579.7,2579.5,3.87669]
[1723768706541,7.44,2579.9,2579.5,3.87664]
[1723768706838,0.25799517,2579.8,2579.5,3.87664]
[1723768707140,0.25799517,2579.8,2579.5,3.87663]
[1723768707319,0.25799517,2579.8,2579.5,7.75326]
[1723768707506,0.25799517,2579.8,2579.6,3.87656]
[1723768707707,0.25799517,2579.8,2579.6,6.17246]
[1723768707908,3.87576,2580.2,2579.6,6.17246]
[1723768708139,5.6216125,2580.2,2579.6,6.17246]
[1723768708339,0.25736518,2580.1,2579.6,6.17246]
[1723768708644,0.25736518,2580.0,2579.7,3.87632]
[1723768708854,0.25736518,2579.9,2579.7,3.87632]
[1723768709044,0.25736518,2579.8,2579.7,3.87632]
[1723768709448,0.25736518,2579.8,2579.6,2.2959]
[1723768709643,0.25736518,2579.7,2579.3,6.33208]
[1723768709826,3.87614,2579.9,2579.4,3.87678]
[1723768710152,7.44,2580.3,2579.3,2.4552]
[1723768710153,0.25739275,2579.8,2579.3,6.33221]
[1723768710330,0.25739275,2579.7,2579.3,2.4552]
[1723768710530,7.75268,2579.8,2579.3,2.4552]
[1723768710531,0.25739275,2579.6,2579.3,2.4552]
[1723768710734,7.75265,2579.8,2579.3,2.4552]
[1723768710735,0.25739275,2579.5,2579.3,2.4552]
[1723768711053,3.87629,2579.8,2579.3,2.4552]
[1723768711259,0.25742867,2579.7,2579.3,2.4552]
[1723768711446,0.25742867,2579.6,2579.3,2.4552]
[1723768711752,0.25742867,2579.5,2579.3,2.4552]
[1723768711958,3.87629,2579.8,2579.3,6.3322]
[1723768712159,0.2574175,2579.7,2579.3,2.4552]
[1723768712356,0.25741713,2579.7,2579.3,2.4552]
[1723768712523,0.25741713,2579.6,2579.3,2.4552]
[1723768712724,3.87629,2579.8,2579.3,6.33221]
[1723768712925,0.25742705,2579.7,2579.3,6.33221]
[1723768713135,0.25742705,2579.6,2579.3,6.33221]
[1723768713336,0.25742705,2579.5,2579.3,6.33221]
[1723768713536,0.25742705,2579.4,2579.3,6.33221]
[1723768713735,0.25742705,2579.7,2579.3,6.33221]
[1723768713939,0.25742705,2579.6,2579.3,6.33221]
[1723768714267,0.25742705,2579.5,2579.3,2.4552]
[1723768714577,0.25742705,2579.4,2579.3,2.4552]
[1723768714985,0.30220183,2579.4,2579.3,2.4552]
[1723768715258,0.30220183,2579.4,2579.3,6.33222]
[1723768716433,0.04477478,2579.4,2579.3,6.33222]
[1723768716847,0.2574104,2579.4,2579.3,6.33222]
[1723768717051,0.2574104,2579.7,2579.3,6.33222]
[1723768717259,3.87629,2579.8,2579.3,6.33222]
[1723768717260,0.04474329,2579.4,2579.3,6.33222]
[1723768717431,3.87629,2579.8,2579.3,6.33222]
[1723768717432,0.2574104,2579.5,2579.3,6.33222]
[1723768717662,3.87629,2579.8,2579.3,6.33222]
[1723768717663,0.30215369,2579.4,2579.3,6.33222]
[1723768718985,0.30215369,2579.4,2579.3,2.4552]
[1723768720532,0.04474329,2579.4,2579.3,2.4552]
[1723768720738,0.25743086,2579.4,2579.3,2.4552]
[1723768721136,0.30228095,2579.4,2579.3,2.4552]
[1723768722370,0.04485009,2579.4,2579.3,2.4552]
[1723768722593,0.302297,2579.4,2578.9,0.80433717]
[1723768722732,3.98354214,2579.3,2578.6,7.97922435]
[1723768722938,7.9053264,2579.2,2578.8,35.0]
[1723768723134,0.25744691,2579.1,2578.9,3.87761]
[1723768723484,0.25744691,2579.0,2578.9,6.37021]
[1723768723638,0.25744691,2579.5,2579.0,3.87737]
[1723768723861,0.25747441,2579.4,2579.2,3.87714]
[1723768724063,0.25747441,2579.3,2579.1,3.87718]
[1723768724264,0.25747441,2579.2,2579.1,3.87718]
[1723768724466,0.04466534,2579.3,2579.1,3.87718]
[1723768724660,0.30208044,2579.2,2579.0,3.87743]
[1723768724867,0.25745492,2579.1,2579.0,3.87743]
[1723768725290,0.25745492,2579.1,2579.0,7.75486]
[1723768725492,0.257485,2579.1,2579.0,3.87743]
[1723768725702,0.257485,2579.5,2579.0,3.87743]
[1723768725877,0.04464932,2579.1,2579.0,3.87743]
[1723768726072,0.257485,2579.3,2579.0,3.87743]
[1723768726295,0.04459422,2579.1,2579.0,3.87743]
[1723768726467,0.257485,2579.1,2579.0,3.87743]
[1723768726668,0.30207922,2579.1,2579.0,3.87743]
[1723768726996,0.257485,2579.1,2579.0,3.87743]
[1723768727496,0.257485,2579.5,2579.0,3.87743]
[1723768727703,0.04461783,2579.1,2579.0,3.87743]
[1723768727862,0.257485,2579.3,2579.0,3.87743]
[1723768728068,0.04462571,2579.1,2578.9,2.4926]
[1723768728408,0.3020904,2579.0,2578.9,6.37022]
[1723768728593,0.04459518,2579.0,2578.9,6.37022]
[1723768728790,3.87675,2579.5,2578.9,6.37022]
[1723768729004,0.30221542,2579.4,2579.0,3.87744]
[1723768729203,0.25748241,2579.3,2579.0,3.87744]
[1723768729406,0.30210097,2579.2,2578.9,3.30227097]
[1723768729593,0.25748241,2579.1,2578.9,7.17986097]
[1723768729795,7.75356,2579.5,2578.9,7.17986097]
[1723768730104,0.04467634,2579.4,2578.9,7.17986097]
[1723768730311,0.25748631,2579.3,2579.0,3.87745]
[1723768730468,0.25748631,2579.2,2579.0,3.87745]
[1723768730804,0.25748631,2579.1,2579.0,3.87745]
[1723768731000,0.30202386,2579.1,2579.0,3.87745]
[1723768731208,0.30202386,2579.1,2578.9,3.30227097]
[1723768731429,0.04453755,2579.1,2578.9,3.30227097]
[1723768731931,3.87687,2579.4,2578.9,3.30227097]
[1723768732237,0.25748802,2579.3,2578.9,0.80967097]
[1723768732419,0.25748802,2579.2,2578.9,0.80967097]
[1723768732728,0.25748802,2579.1,2578.9,0.80967097]
[1723768732931,0.25748802,2579.0,2578.9,0.80967097]
[1723768733435,0.30200128,2579.0,2578.9,0.80967097]
[1723768734234,0.30200128,2579.0,2578.8,36.21450645]
[1723768734235,0.30200128,2579.0,2578.8,35.0]
[1723768734437,0.04451326,2579.0,2578.9,1.34817327]
[1723768734734,0.2575117,2579.0,2578.9,1.34817327]
[1723768734935,0.2575117,2579.1,2578.9,1.34817327]
[1723768735160,0.2575117,2579.0,2578.8,38.87776]
[1723768735334,0.2575117,2578.9,2578.8,38.87776]
[1723768735540,0.2575117,2579.2,2578.8,40.2259468]
[1723768735739,0.25752059,2579.1,2578.8,38.87776]
[1723768736032,0.25752059,2579.0,2578.8,38.87776]
[1723768736240,3.8771,2579.3,2578.8,38.87776]
[1723768736436,0.25751885,2579.2,2578.8,38.87776]
[1723768736615,0.25751885,2579.1,2578.8,38.87776]
[1723768736940,0.04439762,2579.2,2579.1,3.87732]
[1723768737115,0.25746366,2579.2,2579.1,5.22531692]
[1723768737301,0.04437999,2579.2,2579.1,5.22531692]
[1723768737507,0.25746366,2579.2,2579.1,1.34799692]
[1723768737826,0.25746366,2579.2,2578.8,35.0]
[1723768737827,4.13474366,2579.2,2578.8,35.0]
[1723768738028,3.87762,2578.9,2578.8,35.0]
[1723768738226,4.13508366,2578.9,2578.8,35.0]
[1723768738541,4.17941608,2578.9,2578.8,35.0]
[1723768738841,4.17941608,2578.9,2578.1,5.09323645]
[1723768738842,4.17950608,2578.9,2578.1,4.68839097]
[1723768739057,4.17950608,2578.9,2578.2,3.37107271]
[1723768739058,3.87823,2578.5,2578.2,3.37107271]
[1723768739258,3.87823,2578.5,2577.9,3.87904]
[1723768739259,0.25746366,2578.4,2577.9,0.80967097]
[1723768739435,0.043845,2578.4,2578.3,35.0]
[1723768739636,0.30089579,2578.4,2578.3,35.0]
[1723768739831,4.17926579,2578.4,2578.3,35.0]
[1723768740037,0.30089579,2578.4,2578.3,35.0]
[1723768740451,0.30091285,2578.4,2578.3,35.0]
[1723768740927,0.30090176,2578.4,2578.3,35.0]
[1723768742058,0.30089264,2578.4,2578.3,35.0]
[1723768742427,0.30089264,2578.4,2577.9,3.87911]
[1723768742628,0.25704764,2578.3,2577.9,3.87911]
[1723768742829,0.25704764,2578.3,2578.0,35.0]
[1723768743057,0.0428599,2578.2,2578.0,35.0]
[1723768743563,0.04286386,2578.1,2578.0,35.0]
[1723768743729,6.22203,2578.5,2578.0,35.0]
[1723768743929,0.30001709,2578.4,2578.0,35.0]
[1723768744131,0.04296547,2578.4,2578.0,35.0]
[1723768744677,0.04296547,2578.4,2578.0,38.87894]
[1723768744826,0.04296547,2578.4,2578.2,3.87853]
[1723768745031,10.21945,2578.8,2578.2,3.87853]
[1723768745345,0.2570201,2578.7,2578.2,7.75712]
[1723768745545,0.30010793,2578.7,2578.3,35.0]
[1723768745757,0.04308783,2578.7,2578.3,38.87849]
[1723768746060,0.25700234,2578.6,2578.3,35.0]
[1723768746271,0.04312032,2578.6,2578.3,35.0]
[1723768746629,7.75564,2578.8,2578.3,35.0]
[1723768746939,0.25701261,2578.7,2578.3,35.0]
[1723768747279,0.04302977,2578.6,2578.3,35.0]
[1723768747773,3.87777,2578.8,2578.3,35.0]
[1723768747774,0.04301238,2578.5,2578.3,35.0]
[1723768748066,7.75563,2578.8,2578.3,35.0]
[1723768748268,0.04301195,2578.4,2578.3,35.0]
[1723768748567,0.04296975,2578.4,2578.3,35.0]
[1723768748895,2.3472,2578.7,2578.3,35.0]
[1723768748896,3.87794,2578.7,2578.3,35.0]
[1723768749163,0.25701299,2578.6,2578.3,35.0]
[1723768749333,0.04271226,2578.5,2578.3,35.0]
[1723768749730,3.87794,2578.7,2578.3,35.0]
[1723768749981,0.29980838,2578.6,2578.3,35.0]
[1723768750133,0.04279159,2578.6,2578.3,35.0]
[1723768750969,0.2570131,2578.5,2578.3,35.0]
[1723768751167,0.04269987,2578.4,2578.3,35.0]
[1723768751467,0.04269987,2578.4,2578.1,3.87879]
[1723768751765,3.87809,2578.6,2578.0,3.87885]
[1723768751980,0.2570253,2578.5,2578.3,35.0]
[1723768752134,0.29978647,2578.5,2578.3,35.0]
[1723768752334,4.1353953,2578.4,2578.3,35.0]
[1723768752531,4.17814333,2578.4,2578.3,35.0]
[1723768753254,0.04274803,2578.4,2578.3,35.0]
[1723768753570,0.25703047,2578.4,2578.3,35.0]
[1723768753739,0.29944216,2578.4,2578.3,35.0]
[1723768754552,0.29943571,2578.4,2578.3,35.0]
[1723768754981,0.04241169,2578.4,2578.3,35.0]
[1723768755304,0.25703202,2578.4,2578.3,35.0]
[1723768755594,0.2994078,2578.4,2578.3,35.0]
[1723768756691,0.04237578,2578.4,2578.3,35.0]
[1723768757208,0.29939994,2578.4,2578.3,35.0]
[1723768757491,0.04237578,2578.4,2578.3,35.0]
[1723768757652,0.2994046,2578.4,2578.0,3.87894]
[1723768757849,0.04237578,2578.4,2578.0,3.87894]
[1723768758083,0.04237578,2578.4,2578.1,0.47923544]
[1723768758084,0.25704739,2578.3,2578.1,0.47923544]
[1723768758249,0.04237578,2578.4,2578.2,3.87858]
[1723768758453,3.87785,2578.8,2578.2,3.87858]
[1723768758667,0.25702802,2578.7,2578.2,7.75717]
[1723768758864,3.87785,2578.8,2578.2,3.87858]
[1723768758865,0.25702802,2578.6,2578.2,3.87858]
[1723768759060,0.25702802,2578.5,2578.2,3.87858]
[1723768759278,3.87794,2578.7,2578.2,3.87858]
[1723768759473,0.04240936,2578.4,2578.2,3.87858]
[1723768759666,3.87794,2578.7,2578.2,3.87858]
[1723768759877,0.04236381,2578.3,2578.0,7.75771]
[1723768760184,0.04236485,2578.2,2578.1,3.87879]
[1723768760355,3.8781,2578.6,2578.1,3.87879]
[1723768760550,0.29946376,2578.5,2578.1,3.87879]
[1723768760762,0.25703888,2578.4,2578.1,3.87879]
[1723768761083,0.04236381,2578.3,2578.1,3.87879]
[1723768761487,0.04236381,2578.3,2578.0,7.75771]
[1723768761685,3.8781,2578.6,2578.0,3.87883]
[1723768761892,0.04229251,2578.2,2578.0,3.87883]
[1723768762199,0.04227919,2578.1,2578.0,3.87883]
[1723768762367,3.8781,2578.6,2578.1,3.87874]
[1723768762569,0.29941417,2578.5,2578.2,3.87865]
[1723768762779,0.25703531,2578.4,2578.2,3.87865]
[1723768762985,0.04234288,2578.3,2578.2,3.87865]
[1723768763293,0.29937819,2578.3,2578.0,3.87883]
[1723768763486,0.04234288,2578.3,2578.1,3.8787]
[1723768763896,3.87782,2578.8,2578.1,3.8787]
[1723768764054,0.04234274,2578.2,2578.1,3.8787]
[1723768764250,3.87794,2578.7,2578.2,3.87865]
[1723768764477,0.25702732,2578.6,2578.2,3.87865]
[1723768764682,0.25702732,2578.5,2578.2,3.87865]
[1723768764883,3.87794,2578.7,2578.2,3.87865]
[1723768764884,0.25702732,2578.4,2578.2,3.87865]
[1723768765071,0.25702732,2578.3,2578.2,3.87865]
[1723768765255,0.25702732,2578.3,2578.2,7.7573]
[1723768765451,0.25702732,2578.3,2578.2,38.87858]
[1723768765862,11.4833287,2578.8,2578.3,3.87849]
[1723768765863,3.87782,2578.8,2578.3,3.87849]
[1723768766066,0.25700171,2578.7,2578.3,3.87849]
[1723768766266,0.25700171,2578.6,2578.2,35.0]
[1723768766464,0.25700171,2578.5,2578.2,38.87864]
[1723768766692,0.25700171,2578.4,2578.2,38.87864]
[1723768766887,7.75569,2578.8,2578.2,38.87864]
[1723768767092,0.2570016,2578.7,2578.2,38.87864]
[1723768767392,0.2570016,2578.6,2578.2,38.87864]
[1723768767594,0.2570016,2578.5,2578.2,38.87864]
[1723768767789,0.2570016,2578.4,2578.2,35.0]
[1723768768094,0.2570016,2578.3,2578.2,35.0]
[1723768771787,3.87807,2578.6,2578.2,35.0]
[1723768771983,0.25701484,2578.5,2578.2,35.0]
[1723768772263,0.25701484,2578.4,2578.2,35.0]
[1723768772587,0.25701484,2578.3,2578.2,35.0]
[1723768774503,0.29937461,2578.3,2578.2,35.0]
[1723768775971,0.29937461,2578.3,2578.2,41.25187]
[1723768776395,0.29938146,2578.3,2578.2,35.0]
[1723768779994,0.29938146,2578.3,2578.2,38.87867]
[1723768780205,0.29938781,2578.3,2578.2,38.87867]
[1723768780413,0.29938781,2578.3,2578.2,35.0]
[1723768780985,5.53090781,2578.3,2578.2,35.0]
[1723768781213,7.09390441,2578.3,2578.2,35.0]
[1723768781399,3.21538441,2578.3,2578.2,35.0]
[1723768782213,6.94352556,2578.3,2578.2,35.0]
[1723768782407,5.38052896,2578.3,2578.2,35.0]
[1723768782714,5.38060263,2578.3,2578.2,35.0]
[1723768783937,4.02760263,2578.3,2578.2,35.0]
[1723768784283,4.02760263,2578.3,2577.8,4.68893097]
[1723768784487,0.25708527,2578.2,2577.9,3.37173671]
[1723768784686,0.25708527,2578.1,2577.8,4.68893097]
[1723768784895,0.04074194,2578.1,2578.0,35.0]
[1723768785128,0.29783009,2578.1,2578.0,35.0]
[1723768785331,0.25708815,2578.1,2578.0,35.0]
[1723768785533,0.29779776,2578.1,2578.0,35.0]
[1723768785744,0.04070961,2578.1,2578.0,35.0]
[1723768786035,0.25708823,2578.1,2578.0,35.0]
[1723768786333,0.29779472,2578.1,2578.0,35.0]
[1723768787929,0.29779472,2578.1,2578.0,37.3598]
[1723768788120,0.29779472,2578.1,2578.0,38.70845282]
[1723768788308,0.04070649,2578.1,2578.0,48.52174157]
[1723768788623,0.04072363,2578.1,2578.0,48.52174157]
[1723768788818,3.87815,2578.6,2578.0,48.52174157]
[1723768788982,0.04085369,2578.5,2578.1,4.18301039]
[1723768789187,0.25701506,2578.4,2578.2,3.37120057]
[1723768789387,0.29797278,2578.3,2578.2,1.34848023]
[1723768789601,0.29797278,2578.3,2578.1,4.69031284]
[1723768789801,0.25701506,2578.2,2578.1,4.69031284]
[1723768789996,0.29789993,2578.2,2578.1,4.69031284]
[1723768791524,0.29789993,2578.2,2578.1,8.06155804]
[1723768791952,0.29789993,2578.2,2578.1,6.71305996]
[1723768792154,0.29789993,2578.2,2578.1,10.59187996]
[1723768792463,0.04088487,2578.2,2578.1,6.71305996]
[1723768792625,0.04088487,2578.2,2578.1,4.69031284]
[1723768792825,0.25701394,2578.2,2578.1,4.69031284]
[1723768793044,0.04089652,2578.2,2578.1,4.69031284]
[1723768793378,11.31794,2578.7,2578.1,4.69031284]
[1723768793379,0.25701394,2578.5,2578.1,4.69031284]
[1723768793525,0.0409044,2578.2,2578.1,4.69031284]
[1723768794025,0.29794138,2578.2,2578.1,3.87882]
[1723768796865,0.29796058,2578.2,2578.1,8.06185011]
[1723768798462,0.29796058,2578.2,2578.1,4.18303011]
[1723768798992,0.25702775,2578.2,2578.1,4.18303011]
[1723768799304,0.29799084,2578.2,2578.1,4.18303011]
[1723768800285,0.25702775,2578.2,2578.1,4.18303011]
[1723768800487,0.2979436,2578.2,2578.1,4.18303011]
[1723768800790,0.2979609,2578.2,2578.1,4.18303011]
[1723768800991,0.2979609,2578.2,2578.1,0.81175869]
[1723768802717,7.90443747,2578.2,2578.1,0.81175869]
[1723768803033,11.41446465,2578.2,2578.1,0.81175869]
[1723768803562,11.41456589,2578.2,2578.1,0.81175869]
[1723768803962,12.76856589,2578.2,2578.1,0.81175869]